[Event "Titled Tuesday Blitz May 2 Early 2023"]
[White "Przybylski, Wojciech"]
[Black "De Souza, Cristiano Gomes"]
[WhiteFideId "1117599"]
[BlackFideId "2151758"]
[WhiteElo "2222"]
[BlackElo "2068"]
[Result "1-0"]
[Round "05"]
[TimeControl "180+2"]
[Date "2023.05.02"]
[WhiteClock "0:00:24"]
[BlackClock "0:00:20"]

1. e4 {[%clk 0:02:38]}  c5 {[%clk 0:02:59]} 2. Nf3 {[%clk 0:02:30]}  d6 {[%clk 0:02:58]} 3. Bc4 {[%clk 0:02:21]}  Nc6 {[%clk 0:02:56]} 4. c3 {[%clk 0:02:19]}  Nf6 {[%clk 0:02:54]} 5. Qe2 {[%clk 0:02:16]}  e6 {[%clk 0:02:53]} 6. O-O {[%clk 0:02:08]}  Be7 {[%clk 0:02:52]} 7. d3 {[%clk 0:01:58]}  O-O {[%clk 0:02:51]} 8. a4 {[%clk 0:01:58]}  d5 {[%clk 0:02:48]} 9. Ba2 {[%clk 0:01:57]}  d4 {[%clk 0:02:46]} 10. Bg5 {[%clk 0:01:54]}  dxc3 {[%clk 0:02:41]} 11. bxc3 {[%clk 0:01:54]}  b6 {[%clk 0:02:27]} 12. Nbd2 {[%clk 0:01:50]}  Ba6 {[%clk 0:02:21]} 13. Nc4 {[%clk 0:01:49]}  Nd7 {[%clk 0:02:06]} 14. Bxe7 {[%clk 0:01:44]}  Qxe7 {[%clk 0:02:06]} 15. Rfe1 {[%clk 0:01:41]}  Rad8 {[%clk 0:02:03]} 16. Rad1 {[%clk 0:01:35]}  Bxc4 {[%clk 0:01:49]} 17. Bxc4 {[%clk 0:01:31]}  Nde5 {[%clk 0:01:49]} 18. Ba2 {[%clk 0:01:21]}  Nxf3+ {[%clk 0:01:48]} 19. gxf3 {[%clk 0:01:16]}  Ne5 {[%clk 0:01:48]} 20. f4 {[%clk 0:01:16]}  Ng6 {[%clk 0:01:48]} 21. Qg4 {[%clk 0:01:15]}  Qf6 {[%clk 0:01:46]} 22. f5 {[%clk 0:01:10]}  exf5 {[%clk 0:01:46]} 23. Qxf5 {[%clk 0:01:08]}  Ne5 {[%clk 0:01:42]} 24. Qxf6 {[%clk 0:01:06]}  gxf6 {[%clk 0:01:42]} 25. Re3 {[%clk 0:01:05]}  Rd6 {[%clk 0:01:39]} 26. f4 {[%clk 0:01:04]}  Ng6 {[%clk 0:01:38]} 27. Rg3 {[%clk 0:01:00]}  Kh8 {[%clk 0:01:37]} 28. Rf1 {[%clk 0:00:59]}  Rfd8 {[%clk 0:01:34]} 29. Bc4 {[%clk 0:00:58]}  R8d7 {[%clk 0:01:31]} 30. Kg2 {[%clk 0:00:56]}  Re7 {[%clk 0:01:19]} 31. Kf3 {[%clk 0:00:56]}  Rd8 {[%clk 0:01:15]} 32. Rh3 {[%clk 0:00:54]}  Rg8 {[%clk 0:01:11]} 33. Rh5 {[%clk 0:00:53]}  Rg7 {[%clk 0:01:07]} 34. Rf2 {[%clk 0:00:50]}  Kg8 {[%clk 0:01:05]} 35. Rg2 {[%clk 0:00:49]}  Rd7 {[%clk 0:01:00]} 36. Rg3 {[%clk 0:00:48]}  Kf8 {[%clk 0:00:53]} 37. Rgh3 {[%clk 0:00:46]}  Kg8 {[%clk 0:00:52]} 38. Rh6 {[%clk 0:00:43]}  Re7 {[%clk 0:00:49]} 39. R3h5 {[%clk 0:00:42]}  Rd7 {[%clk 0:00:45]} 40. Bd5 {[%clk 0:00:40]}  Rd6 {[%clk 0:00:44]} 41. c4 {[%clk 0:00:40]}  Rd7 {[%clk 0:00:41]} 42. Rf5 {[%clk 0:00:36]}  Rd6 {[%clk 0:00:40]} 43. Rfh5 {[%clk 0:00:31]}  Rd7 {[%clk 0:00:39]} 44. Rh3 {[%clk 0:00:30]}  Rd6 {[%clk 0:00:38]} 45. Rg3 {[%clk 0:00:29]}  Rd7 {[%clk 0:00:37]} 46. h4 {[%clk 0:00:30]}  Kh8 {[%clk 0:00:34]} 47. h5 {[%clk 0:00:29]}  Nf8 {[%clk 0:00:34]} 48. Rxf6 {[%clk 0:00:28]}  Rxg3+ {[%clk 0:00:33]} 49. Kxg3 {[%clk 0:00:29]}  Kg7 {[%clk 0:00:34]} 50. e5 {[%clk 0:00:27]}  Ne6 {[%clk 0:00:29]} 51. h6+ {[%clk 0:00:26]}  Kg8 {[%clk 0:00:28]} 52. f5 {[%clk 0:00:26]}  Ng5 {[%clk 0:00:20]} 53. Kg4 {[%clk 0:00:24]} 1-0


[Site "https://www.chess.com"]

[Event "Titled Tuesday Blitz May 2 Early 2023"]
[White "Seletsky, Grigory"]
[Black "Allahverdiyeva, Ayan"]
[WhiteFideId "14112191"]
[BlackFideId "13412590"]
[WhiteElo "2490"]
[BlackElo "1980"]
[Result "1/2-1/2"]
[Round "05"]
[TimeControl "180+2"]
[Date "2023.05.02"]
[WhiteClock "0:00:08"]
[BlackClock "0:00:10"]

1. e4 {[%clk 0:02:58]}  c5 {[%clk 0:02:59]} 2. Nc3 {[%clk 0:02:56]}  d6 {[%clk 0:02:57]} 3. Bc4 {[%clk 0:02:54]}  g6 {[%clk 0:02:42]} 4. d3 {[%clk 0:02:54]}  Bg7 {[%clk 0:02:41]} 5. f4 {[%clk 0:02:54]}  h5 {[%clk 0:02:26]} 6. Nf3 {[%clk 0:02:48]}  Nh6 {[%clk 0:02:18]} 7. O-O {[%clk 0:02:47]}  e6 {[%clk 0:01:59]} 8. h3 {[%clk 0:02:41]}  O-O {[%clk 0:01:58]} 9. a3 {[%clk 0:02:41]}  Nc6 {[%clk 0:01:56]} 10. Qe1 {[%clk 0:02:31]}  Nd4 {[%clk 0:01:43]} 11. Nxd4 {[%clk 0:02:28]}  cxd4 {[%clk 0:01:39]} 12. Nd1 {[%clk 0:02:23]}  d5 {[%clk 0:01:39]} 13. Bb3 {[%clk 0:02:22]}  dxe4 {[%clk 0:01:27]} 14. dxe4 {[%clk 0:02:12]}  d3 {[%clk 0:01:21]} 15. Nf2 {[%clk 0:02:09]}  dxc2 {[%clk 0:01:18]} 16. Bxc2 {[%clk 0:02:07]}  Bd7 {[%clk 0:01:15]} 17. Qe2 {[%clk 0:02:01]}  Qb6 {[%clk 0:01:07]} 18. Rb1 {[%clk 0:01:59]}  Bb5 {[%clk 0:01:01]} 19. Bd3 {[%clk 0:01:55]}  Bxd3 {[%clk 0:01:01]} 20. Qxd3 {[%clk 0:01:55]}  Rfd8 {[%clk 0:00:55]} 21. Qe2 {[%clk 0:01:54]}  Rac8 {[%clk 0:00:50]} 22. Be3 {[%clk 0:01:52]}  Qb3 {[%clk 0:00:50]} 23. Rfd1 {[%clk 0:01:24]}  h4 {[%clk 0:00:47]} 24. Rxd8+ {[%clk 0:01:20]}  Rxd8 {[%clk 0:00:47]} 25. Rd1 {[%clk 0:01:21]}  Rc8 {[%clk 0:00:27]} 26. Qd3 {[%clk 0:00:52]}  Qxd3 {[%clk 0:00:25]} 27. Rxd3 {[%clk 0:00:50]}  Bxb2 {[%clk 0:00:25]} 28. Bxa7 {[%clk 0:00:46]}  Rc1+ {[%clk 0:00:23]} 29. Kh2 {[%clk 0:00:45]}  g5 {[%clk 0:00:23]} 30. Be3 {[%clk 0:00:42]}  Rf1 {[%clk 0:00:18]} 31. g3 {[%clk 0:00:26]}  hxg3+ {[%clk 0:00:16]} 32. Kxg3 {[%clk 0:00:27]}  gxf4+ {[%clk 0:00:16]} 33. Kxf4 {[%clk 0:00:26]}  Kh7 {[%clk 0:00:15]} 34. Rb3 {[%clk 0:00:22]}  Bf6 {[%clk 0:00:15]} 35. Rxb7 {[%clk 0:00:18]}  Bh4 {[%clk 0:00:16]} 36. Kf3 {[%clk 0:00:19]}  Kg6 {[%clk 0:00:14]} 37. Ke2 {[%clk 0:00:18]}  f5 {[%clk 0:00:14]} 38. Bxh6 {[%clk 0:00:14]}  Kxh6 {[%clk 0:00:14]} 39. Nd3 {[%clk 0:00:13]}  fxe4 {[%clk 0:00:14]} 40. Nc5 {[%clk 0:00:13]}  Ra1 {[%clk 0:00:09]} 41. Rb3 {[%clk 0:00:11]}  Be7 {[%clk 0:00:08]} 42. Nxe4 {[%clk 0:00:11]}  Rxa3 {[%clk 0:00:08]} 43. Rxa3 {[%clk 0:00:08]}  Bxa3 {[%clk 0:00:08]} 44. Kf3 {[%clk 0:00:09]}  Be7 {[%clk 0:00:09]} 45. Kg4 {[%clk 0:00:09]}  Kg6 {[%clk 0:00:09]} 46. h4 {[%clk 0:00:09]}  Bxh4 {[%clk 0:00:09]} 47. Kxh4 {[%clk 0:00:08]}  Kf5 {[%clk 0:00:10]} 48. Ng5 {[%clk 0:00:08]}  Kf4 {[%clk 0:00:10]} 49. Kh5 {[%clk 0:00:09]}  Ke3 {[%clk 0:00:10]} 50. Nxe6 {[%clk 0:00:08]} 1/2-1/2


[Site "https://www.chess.com"]

[Event "Titled Tuesday Blitz May 2 Early 2023"]
[White "Arnold, Ken"]
[Black "Amitpal, Singh"]
[WhiteFideId "2056836"]
[BlackFideId "5012899"]
[WhiteElo "2355"]
[BlackElo "2107"]
[Result "1-0"]
[Round "05"]
[TimeControl "180+2"]
[Date "2023.05.02"]
[WhiteClock "0:01:17"]
[BlackClock "0:00:15"]

1. d4 {[%clk 0:03:00]}  Nf6 {[%clk 0:02:58]} 2. c4 {[%clk 0:03:00]}  e6 {[%clk 0:02:57]} 3. Nf3 {[%clk 0:02:59]}  Bb4+ {[%clk 0:02:54]} 4. Bd2 {[%clk 0:02:58]}  Bxd2+ {[%clk 0:02:53]} 5. Nbxd2 {[%clk 0:02:58]}  O-O {[%clk 0:02:53]} 6. e4 {[%clk 0:02:58]}  d6 {[%clk 0:02:52]} 7. Bd3 {[%clk 0:02:57]}  Nbd7 {[%clk 0:02:50]} 8. O-O {[%clk 0:02:56]}  b6 {[%clk 0:02:50]} 9. Re1 {[%clk 0:02:55]}  Bb7 {[%clk 0:02:49]} 10. Qc2 {[%clk 0:02:55]}  h6 {[%clk 0:02:44]} 11. Rad1 {[%clk 0:02:53]}  c5 {[%clk 0:02:29]} 12. d5 {[%clk 0:02:51]}  e5 {[%clk 0:02:26]} 13. Nf1 {[%clk 0:02:50]}  a5 {[%clk 0:02:11]} 14. Ne3 {[%clk 0:02:45]}  a4 {[%clk 0:02:11]} 15. Nf5 {[%clk 0:02:42]}  a3 {[%clk 0:01:51]} 16. b3 {[%clk 0:02:38]}  Re8 {[%clk 0:01:35]} 17. Nxd6 {[%clk 0:02:35]}  Re7 {[%clk 0:01:19]} 18. Nf5 {[%clk 0:02:26]}  Re8 {[%clk 0:01:18]} 19. Qc1 {[%clk 0:02:22]}  Nf8 {[%clk 0:01:17]} 20. N3h4 {[%clk 0:02:16]}  N6d7 {[%clk 0:00:58]} 21. g3 {[%clk 0:02:04]}  Ng6 {[%clk 0:00:39]} 22. Nxg6 {[%clk 0:01:48]}  fxg6 {[%clk 0:00:40]} 23. Nd6 {[%clk 0:01:46]}  Re7 {[%clk 0:00:37]} 24. Nxb7 {[%clk 0:01:45]}  Nf6 {[%clk 0:00:37]} 25. Nxc5 {[%clk 0:01:40]}  bxc5 {[%clk 0:00:38]} 26. Bf1 {[%clk 0:01:37]}  Qf8 {[%clk 0:00:35]} 27. Bh3 {[%clk 0:01:34]}  Rf7 {[%clk 0:00:34]} 28. Be6 {[%clk 0:01:34]}  Ne8 {[%clk 0:00:32]} 29. Rf1 {[%clk 0:01:31]}  Kh8 {[%clk 0:00:31]} 30. Bxf7 {[%clk 0:01:30]}  Qxf7 {[%clk 0:00:32]} 31. f4 {[%clk 0:01:30]}  exf4 {[%clk 0:00:31]} 32. Qxf4 {[%clk 0:01:30]}  Qxf4 {[%clk 0:00:30]} 33. gxf4 {[%clk 0:01:28]}  Nd6 {[%clk 0:00:30]} 34. Rde1 {[%clk 0:01:28]}  Re8 {[%clk 0:00:28]} 35. e5 {[%clk 0:01:26]}  Nf5 {[%clk 0:00:26]} 36. e6 {[%clk 0:01:24]}  Kg8 {[%clk 0:00:27]} 37. Re5 {[%clk 0:01:22]}  Nd4 {[%clk 0:00:24]} 38. Kg2 {[%clk 0:01:21]}  Re7 {[%clk 0:00:23]} 39. Rfe1 {[%clk 0:01:20]}  Nc2 {[%clk 0:00:20]} 40. d6 {[%clk 0:01:19]}  Nxe1+ {[%clk 0:00:18]} 41. Rxe1 {[%clk 0:01:18]}  Re8 {[%clk 0:00:16]} 42. d7 {[%clk 0:01:18]}  Ra8 {[%clk 0:00:14]} 43. e7 {[%clk 0:01:18]}  Kf7 {[%clk 0:00:14]} 44. e8=Q+ {[%clk 0:01:18]}  Rxe8 {[%clk 0:00:15]} 45. dxe8=Q+ {[%clk 0:01:18]}  Kf6 {[%clk 0:00:15]} 46. Qe6# {[%clk 0:01:17]} 1-0


[Site "https://www.chess.com"]

[Event "Titled Tuesday Blitz May 2 Early 2023"]
[White "Isanzhulov, Arystan"]
[Black "Panico, Nick"]
[WhiteFideId "13711644"]
[BlackFideId "2026724"]
[WhiteElo "2464"]
[BlackElo "1982"]
[Result "1-0"]
[Round "05"]
[TimeControl "180+2"]
[Date "2023.05.02"]
[WhiteClock "0:02:15"]
[BlackClock "0:01:13"]

1. b3 {[%clk 0:02:51]}  f5 {[%clk 0:02:59]} 2. Bb2 {[%clk 0:02:51]}  Nf6 {[%clk 0:02:59]} 3. g3 {[%clk 0:02:47]}  g6 {[%clk 0:02:55]} 4. Bg2 {[%clk 0:02:47]}  Bg7 {[%clk 0:02:55]} 5. Nf3 {[%clk 0:02:47]}  O-O {[%clk 0:02:56]} 6. O-O {[%clk 0:02:48]}  d6 {[%clk 0:02:56]} 7. c4 {[%clk 0:02:48]}  e5 {[%clk 0:02:52]} 8. e3 {[%clk 0:02:47]}  Nc6 {[%clk 0:02:50]} 9. Nc3 {[%clk 0:02:46]}  e4 {[%clk 0:02:47]} 10. Ne1 {[%clk 0:02:44]}  d5 {[%clk 0:02:35]} 11. Nxd5 {[%clk 0:02:39]}  Nxd5 {[%clk 0:02:35]} 12. Bxg7 {[%clk 0:02:40]}  Kxg7 {[%clk 0:02:36]} 13. cxd5 {[%clk 0:02:39]}  Qxd5 {[%clk 0:02:36]} 14. d3 {[%clk 0:02:37]}  Qe6 {[%clk 0:02:26]} 15. dxe4 {[%clk 0:02:29]}  fxe4 {[%clk 0:02:27]} 16. Nc2 {[%clk 0:02:29]}  Bd7 {[%clk 0:02:22]} 17. Nd4 {[%clk 0:02:27]}  Nxd4 {[%clk 0:02:22]} 18. Qxd4+ {[%clk 0:02:28]}  Qf6 {[%clk 0:02:19]} 19. Qxd7+ {[%clk 0:02:27]}  Rf7 {[%clk 0:02:18]} 20. Qd4 {[%clk 0:02:27]}  Qxd4 {[%clk 0:02:18]} 21. exd4 {[%clk 0:02:28]}  Rd8 {[%clk 0:02:17]} 22. Rad1 {[%clk 0:02:27]}  c6 {[%clk 0:01:44]} 23. Bxe4 {[%clk 0:02:25]}  Kh6 {[%clk 0:01:42]} 24. Rd2 {[%clk 0:02:22]}  Re7 {[%clk 0:01:41]} 25. f3 {[%clk 0:02:22]}  Kg5 {[%clk 0:01:41]} 26. Rfd1 {[%clk 0:02:22]}  h5 {[%clk 0:01:39]} 27. d5 {[%clk 0:02:22]}  c5 {[%clk 0:01:38]} 28. d6 {[%clk 0:02:22]}  Red7 {[%clk 0:01:37]} 29. Rd5+ {[%clk 0:02:22]}  Kf6 {[%clk 0:01:36]} 30. h4 {[%clk 0:02:23]}  b6 {[%clk 0:01:35]} 31. Rg5 {[%clk 0:02:22]}  Kf7 {[%clk 0:01:34]} 32. Rxg6 {[%clk 0:02:22]}  b5 {[%clk 0:01:34]} 33. Bf5 {[%clk 0:02:22]}  Rb7 {[%clk 0:01:28]} 34. d7 {[%clk 0:02:23]}  c4 {[%clk 0:01:26]} 35. Rc6 {[%clk 0:02:20]}  cxb3 {[%clk 0:01:25]} 36. axb3 {[%clk 0:02:21]}  Ke7 {[%clk 0:01:23]} 37. Rc8 {[%clk 0:02:18]}  Rb8 {[%clk 0:01:23]} 38. Re1+ {[%clk 0:02:16]}  Kd6 {[%clk 0:01:23]} 39. Rxb8 {[%clk 0:02:16]}  Rxb8 {[%clk 0:01:22]} 40. Re8 {[%clk 0:02:17]}  Kc7 {[%clk 0:01:15]} 41. Rxb8 {[%clk 0:02:17]}  Kxb8 {[%clk 0:01:15]} 42. d8=Q+ {[%clk 0:02:18]}  Kb7 {[%clk 0:01:15]} 43. Be4+ {[%clk 0:02:15]}  Ka6 {[%clk 0:01:15]} 44. g4 {[%clk 0:02:15]}  b4 {[%clk 0:01:14]} 45. Qc7 {[%clk 0:02:15]}  hxg4 {[%clk 0:01:13]} 46. Bd3# {[%clk 0:02:15]} 1-0


[Site "https://www.chess.com"]

[Event "Titled Tuesday Blitz May 2 Early 2023"]
[White "Bruedigam, Martin"]
[Black "Manon-og, Ramon Jr."]
[WhiteFideId "24608033"]
[BlackFideId "5200776"]
[WhiteElo "2331"]
[BlackElo "1999"]
[Result "1-0"]
[Round "05"]
[TimeControl "180+2"]
[Date "2023.05.02"]
[WhiteClock "0:01:55"]
[BlackClock "0:02:00"]

1. d4 {[%clk 0:03:00]}  Nf6 {[%clk 0:02:50]} 2. c4 {[%clk 0:03:00]}  g6 {[%clk 0:02:46]} 3. f3 {[%clk 0:03:01]}  d5 {[%clk 0:02:47]} 4. cxd5 {[%clk 0:03:02]}  Nxd5 {[%clk 0:02:47]} 5. e4 {[%clk 0:03:02]}  Nb6 {[%clk 0:02:47]} 6. Nc3 {[%clk 0:03:03]}  Bg7 {[%clk 0:02:48]} 7. Be3 {[%clk 0:03:03]}  N8d7 {[%clk 0:02:48]} 8. Qd2 {[%clk 0:03:01]}  O-O {[%clk 0:02:48]} 9. h4 {[%clk 0:02:59]}  c5 {[%clk 0:02:49]} 10. dxc5 {[%clk 0:02:52]}  e5 {[%clk 0:02:25]} 11. cxb6 {[%clk 0:02:51]}  axb6 {[%clk 0:02:25]} 12. Bb5 {[%clk 0:02:45]}  Qe7 {[%clk 0:02:23]} 13. Nge2 {[%clk 0:02:43]}  Nc5 {[%clk 0:02:20]} 14. Nd5 {[%clk 0:02:30]}  Qd8 {[%clk 0:02:20]} 15. Qc2 {[%clk 0:02:20]}  Be6 {[%clk 0:02:15]} 16. Nec3 {[%clk 0:02:19]}  h5 {[%clk 0:02:10]} 17. Bg5 {[%clk 0:02:14]}  f6 {[%clk 0:02:09]} 18. Be3 {[%clk 0:02:14]}  Ra5 {[%clk 0:02:04]} 19. O-O {[%clk 0:02:12]}  Bxd5 {[%clk 0:02:02]} 20. exd5 {[%clk 0:02:04]}  Ra8 {[%clk 0:02:00]} 21. Qxg6 {[%clk 0:01:55]} 1-0


[Site "https://www.chess.com"]

[Event "Titled Tuesday Blitz May 2 Early 2023"]
[White "Pham, Le Thao Nguyen"]
[Black "Mogirzan, Matei-Valeriu"]
[WhiteFideId "12401226"]
[BlackFideId "1257455"]
[WhiteElo "2286"]
[BlackElo "1733"]
[Result "1-0"]
[Round "05"]
[TimeControl "180+2"]
[Date "2023.05.02"]
[WhiteClock "0:00:17"]
[BlackClock "0:00:01"]

1. d4 {[%clk 0:02:51]}  Nf6 {[%clk 0:02:57]} 2. Nf3 {[%clk 0:02:51]}  c5 {[%clk 0:02:54]} 3. c3 {[%clk 0:02:50]}  Nc6 {[%clk 0:02:53]} 4. d5 {[%clk 0:02:46]}  Nb8 {[%clk 0:02:53]} 5. g3 {[%clk 0:02:46]}  g6 {[%clk 0:02:52]} 6. Bg2 {[%clk 0:02:46]}  d6 {[%clk 0:02:51]} 7. O-O {[%clk 0:02:46]}  Bg7 {[%clk 0:02:50]} 8. Re1 {[%clk 0:02:46]}  O-O {[%clk 0:02:47]} 9. e4 {[%clk 0:02:47]}  Bg4 {[%clk 0:02:39]} 10. a4 {[%clk 0:02:42]}  Nfd7 {[%clk 0:02:34]} 11. h3 {[%clk 0:02:41]}  Bxf3 {[%clk 0:02:34]} 12. Bxf3 {[%clk 0:02:41]}  Na6 {[%clk 0:02:07]} 13. Na3 {[%clk 0:02:40]}  Nc7 {[%clk 0:02:03]} 14. Bg2 {[%clk 0:02:34]}  a6 {[%clk 0:01:50]} 15. a5 {[%clk 0:02:27]}  b5 {[%clk 0:01:38]} 16. axb6 {[%clk 0:02:26]}  Nxb6 {[%clk 0:01:37]} 17. Bf4 {[%clk 0:02:25]}  Nb5 {[%clk 0:01:28]} 18. Qe2 {[%clk 0:01:48]}  Qd7 {[%clk 0:00:54]} 19. Nc4 {[%clk 0:01:45]}  Nxc4 {[%clk 0:00:46]} 20. Qxc4 {[%clk 0:01:46]}  e5 {[%clk 0:00:37]} 21. dxe6 {[%clk 0:01:39]}  fxe6 {[%clk 0:00:37]} 22. Red1 {[%clk 0:01:31]}  Kh8 {[%clk 0:00:31]} 23. Qxc5 {[%clk 0:01:25]}  e5 {[%clk 0:00:14]} 24. Be3 {[%clk 0:01:00]}  Qe6 {[%clk 0:00:07]} 25. Qd5 {[%clk 0:00:51]}  Qf6 {[%clk 0:00:06]} 26. Ra5 {[%clk 0:00:46]}  Rad8 {[%clk 0:00:02]} 27. Rxa6 {[%clk 0:00:45]}  Nc7 {[%clk 0:00:02]} 28. Qa5 {[%clk 0:00:37]}  Nxa6 {[%clk 0:00:02]} 29. Qxa6 {[%clk 0:00:38]}  d5 {[%clk 0:00:02]} 30. Qxf6 {[%clk 0:00:34]}  Rxf6 {[%clk 0:00:02]} 31. exd5 {[%clk 0:00:35]}  Rb8 {[%clk 0:00:01]} 32. d6 {[%clk 0:00:31]}  Rff8 {[%clk 0:00:01]} 33. b4 {[%clk 0:00:31]}  Rfd8 {[%clk 0:00:01]} 34. Bc5 {[%clk 0:00:29]}  e4 {[%clk 0:00:01]} 35. c4 {[%clk 0:00:28]}  Rd7 {[%clk 0:00:01]} 36. Bxe4 {[%clk 0:00:28]}  Rc8 {[%clk 0:00:01]} 37. Bf3 {[%clk 0:00:24]}  Bc3 {[%clk 0:00:01]} 38. Bg4 {[%clk 0:00:24]}  Rcd8 {[%clk 0:00:01]} 39. Bxd7 {[%clk 0:00:24]}  Rxd7 {[%clk 0:00:02]} 40. Rc1 {[%clk 0:00:20]}  Be5 {[%clk 0:00:02]} 41. Rd1 {[%clk 0:00:20]}  Kg7 {[%clk 0:00:02]} 42. Rd3 {[%clk 0:00:20]}  Bf6 {[%clk 0:00:02]} 43. Be3 {[%clk 0:00:19]}  Bd8 {[%clk 0:00:03]} 44. c5 {[%clk 0:00:20]}  Bc7 {[%clk 0:00:02]} 45. Bd4+ {[%clk 0:00:17]}  Kf7 {[%clk 0:00:01]} 46. dxc7 {[%clk 0:00:18]}  Rxc7 {[%clk 0:00:02]} 47. b5 {[%clk 0:00:18]}  Ke6 {[%clk 0:00:03]} 48. Be3 {[%clk 0:00:18]}  Ke5 {[%clk 0:00:03]} 49. c6 {[%clk 0:00:18]}  Ke4 {[%clk 0:00:03]} 50. Rd7 {[%clk 0:00:18]}  Rc8 {[%clk 0:00:03]} 51. b6 {[%clk 0:00:18]}  Ra8 {[%clk 0:00:01]} 52. Kg2 {[%clk 0:00:18]}  g5 {[%clk 0:00:01]} 53. b7 {[%clk 0:00:18]}  Ra1 {[%clk 0:00:01]} 54. b8=Q {[%clk 0:00:17]} 1-0


[Site "https://www.chess.com"]

[Event "Titled Tuesday Blitz May 2 Early 2023"]
[White "Rodchenkov, Sergey D."]
[Black "Kopacz, Grzegorz"]
[WhiteFideId "4168712"]
[BlackFideId "1109880"]
[WhiteElo "2277"]
[BlackElo "2037"]
[Result "1-0"]
[Round "05"]
[TimeControl "180+2"]
[Date "2023.05.02"]
[WhiteClock "0:00:24"]
[BlackClock "0:01:33"]

1. e4 {[%clk 0:03:00]}  c5 {[%clk 0:02:59]} 2. Nf3 {[%clk 0:03:01]}  Nc6 {[%clk 0:02:58]} 3. d4 {[%clk 0:03:01]}  cxd4 {[%clk 0:02:58]} 4. Nxd4 {[%clk 0:03:02]}  g6 {[%clk 0:02:59]} 5. c4 {[%clk 0:03:02]}  Bg7 {[%clk 0:02:57]} 6. Be3 {[%clk 0:03:02]}  Nf6 {[%clk 0:02:57]} 7. Nc3 {[%clk 0:03:02]}  d6 {[%clk 0:02:57]} 8. Be2 {[%clk 0:03:02]}  O-O {[%clk 0:02:54]} 9. O-O {[%clk 0:03:02]}  a6 {[%clk 0:02:53]} 10. f3 {[%clk 0:03:00]}  Nxd4 {[%clk 0:02:51]} 11. Bxd4 {[%clk 0:02:59]}  Be6 {[%clk 0:02:51]} 12. f4 {[%clk 0:02:52]}  Qa5 {[%clk 0:02:46]} 13. Rc1 {[%clk 0:02:35]}  Rfc8 {[%clk 0:02:44]} 14. b3 {[%clk 0:02:07]}  b5 {[%clk 0:02:43]} 15. f5 {[%clk 0:02:00]}  Bd7 {[%clk 0:02:40]} 16. Bxf6 {[%clk 0:01:58]}  Bxf6 {[%clk 0:02:24]} 17. Nd5 {[%clk 0:01:58]}  Be5 {[%clk 0:02:18]} 18. Nxe7+ {[%clk 0:01:55]}  Kg7 {[%clk 0:02:18]} 19. Nxc8 {[%clk 0:01:55]}  Rxc8 {[%clk 0:02:19]} 20. f6+ {[%clk 0:01:49]}  Bxf6 {[%clk 0:02:05]} 21. Qxd6 {[%clk 0:01:47]}  Be6 {[%clk 0:02:05]} 22. Kh1 {[%clk 0:01:10]}  Qxa2 {[%clk 0:02:00]} 23. Bg4 {[%clk 0:00:55]}  Rd8 {[%clk 0:01:53]} 24. Qf4 {[%clk 0:00:54]}  Qb2 {[%clk 0:01:47]} 25. Bxe6 {[%clk 0:00:46]}  fxe6 {[%clk 0:01:48]} 26. c5 {[%clk 0:00:37]}  Rd2 {[%clk 0:01:42]} 27. c6 {[%clk 0:00:25]}  g5 {[%clk 0:01:33]} 28. Qxf6+ {[%clk 0:00:22]}  Qxf6 {[%clk 0:01:32]} 29. Rxf6 {[%clk 0:00:23]}  Kxf6 {[%clk 0:01:33]} 30. c7 {[%clk 0:00:24]} 1-0


[Site "https://www.chess.com"]

[Event "Titled Tuesday Blitz May 2 Early 2023"]
[White "Vivas Zamora, Fabian Ernesto"]
[Black "Makhmudov, Shukhrat"]
[WhiteFideId "3902480"]
[BlackFideId "14200775"]
[WhiteElo "2262"]
[BlackElo "2135"]
[Result "0-1"]
[Round "05"]
[TimeControl "180+2"]
[Date "2023.05.02"]
[WhiteClock "0:00:01"]
[BlackClock "0:00:18"]

1. e4 {[%clk 0:03:00]}  e5 {[%clk 0:02:56]} 2. Nf3 {[%clk 0:02:59]}  Nc6 {[%clk 0:02:55]} 3. Bc4 {[%clk 0:02:58]}  Nf6 {[%clk 0:02:55]} 4. d3 {[%clk 0:02:57]}  Be7 {[%clk 0:02:53]} 5. O-O {[%clk 0:02:53]}  d6 {[%clk 0:02:53]} 6. a4 {[%clk 0:02:49]}  Bg4 {[%clk 0:02:52]} 7. h3 {[%clk 0:02:48]}  Bh5 {[%clk 0:02:49]} 8. Bg5 {[%clk 0:01:51]}  h6 {[%clk 0:02:46]} 9. Bxf6 {[%clk 0:01:46]}  Bxf6 {[%clk 0:02:46]} 10. g4 {[%clk 0:01:38]}  Bg6 {[%clk 0:02:46]} 11. Nc3 {[%clk 0:01:38]}  Qd7 {[%clk 0:02:42]} 12. Nd5 {[%clk 0:01:36]}  Bd8 {[%clk 0:02:41]} 13. a5 {[%clk 0:01:34]}  a6 {[%clk 0:02:41]} 14. Kg2 {[%clk 0:01:09]}  Bh7 {[%clk 0:02:25]} 15. Nd2 {[%clk 0:01:03]}  Ne7 {[%clk 0:02:11]} 16. f4 {[%clk 0:01:01]}  Nxd5 {[%clk 0:01:57]} 17. Bxd5 {[%clk 0:01:02]}  c6 {[%clk 0:01:56]} 18. Bb3 {[%clk 0:01:01]}  exf4 {[%clk 0:01:56]} 19. Rxf4 {[%clk 0:01:00]}  O-O {[%clk 0:01:56]} 20. Qe2 {[%clk 0:00:44]}  Bf6 {[%clk 0:01:35]} 21. Rxf6 {[%clk 0:00:40]}  gxf6 {[%clk 0:01:35]} 22. Rf1 {[%clk 0:00:39]}  Qe7 {[%clk 0:01:23]} 23. Qf3 {[%clk 0:00:20]}  Kg7 {[%clk 0:01:20]} 24. Rf2 {[%clk 0:00:19]}  Rad8 {[%clk 0:01:18]} 25. Nf1 {[%clk 0:00:19]}  Qe5 {[%clk 0:01:11]} 26. Ng3 {[%clk 0:00:18]}  Bg6 {[%clk 0:01:10]} 27. c3 {[%clk 0:00:16]}  d5 {[%clk 0:01:09]} 28. exd5 {[%clk 0:00:14]}  cxd5 {[%clk 0:01:07]} 29. d4 {[%clk 0:00:14]}  Qg5 {[%clk 0:00:59]} 30. Bc2 {[%clk 0:00:08]}  Rfe8 {[%clk 0:00:57]} 31. Nf5+ {[%clk 0:00:05]}  Kh7 {[%clk 0:00:55]} 32. h4 {[%clk 0:00:05]}  Qc1 {[%clk 0:00:52]} 33. h5 {[%clk 0:00:05]}  Re1 {[%clk 0:00:49]} 34. hxg6+ {[%clk 0:00:05]}  fxg6 {[%clk 0:00:49]} 35. Ng3 {[%clk 0:00:03]}  Rg1+ {[%clk 0:00:41]} 36. Kh2 {[%clk 0:00:03]}  Rf8 {[%clk 0:00:34]} 37. Nh5 {[%clk 0:00:02]}  Re1 {[%clk 0:00:23]} 38. Nxf6+ {[%clk 0:00:01]}  Kh8 {[%clk 0:00:18]} 0-1


[Site "https://www.chess.com"]